Cogmind - Beta 12 @@@ ROGUE MODE // 2023.04.10 @ 10:28:05 Player: Mr Goldstein Result: Destroyed by G-47 Trooper with Particle Gun Performance ------------- Evolutions (3) 1500 Regions Visited (4) 800 Robots Destroyed (3) 15 Value Destroyed (80) 80 Prototype IDs (2) 40 Alien Tech Used (0) 0 Bonus (834) 834 TOTAL SCORE: 3269 Bonus ------- Pacifist 834 Cogmind --------- Core Integrity 0/700 Matter 222/300 Energy 99/100 System Corruption 1% Temperature Cool (9) Movement Core (50) Location -7/Factory Parts ------- > --- POWER (1) -------- (None) > --- PROPULSION (2) --- (None) > --- UTILITY (8) ------ (None) > --- WEAPON (2) ------- Chainsword > --- INVENTORY (5) ---- Improved Datajack Chainsword Chainsword Chainsword Peak State ------------ > --- POWER ------------ (None) > --- PROPULSION ------- (None) > --- UTILITY ---------- (None) > --- WEAPON ----------- Chainsword > --- INVENTORY -------- Chainsword Chainsword Chainsword [Rating: 5] Favorites ----------- Power None Propulsion None Utility None Weapon Chainsword Slashing Weapon Chainsword Build | -11 -10 -9 -8 -7 ------- Run | Jun Mat Mat Mat Fac Slots Evolved 6 | . . 2 2 2 Power . | . . . . . Propulsion . | . . . . . Utility 6 | . . 2 2 2 Weapon . | . . . . . Parts Attached 1 | . . . . 1 Power . | . . . . . Engine . | . . . . . Core . | . . . . . Reactor . | . . . . . Propulsion . | . . . . . Treads . | . . . . . Leg . | . . . . . Wheel . | . . . . . Hover . | . . . . . Flight . | . . . . . Utility . | . . . . . Device . | . . . . . Storage . | . . . . . Processor . | . . . . . Hackware . | . . . . . Protection . | . . . . . Artifact . | . . . . . Weapon 1 | . . . . 1 Energy Gun . | . . . . . Energy Cannon . | . . . . . Ballistic Gun . | . . . . . Ballistic Cannon . | . . . . . Launcher . | . . . . . Special Weapon . | . . . . . Impact Weapon . | . . . . . Slashing Weapon 1 | . . . . 1 Piercing Weapon . | . . . . . Special Melee Weapon . | . . . . . Unidentified Prototypes . | . . . . . Parts Lost . | . . . . . Power . | . . . . . Propulsion . | . . . . . Utility . | . . . . . Weapon . | . . . . . Highest Loss Streak . | . . . . . To Critical Strikes . | . . . . . Average Slot Usage (%) 3 | . . . . 5 Slashing Weapon 3 | . . . . 5 Naked Turns 198 | . 43 54 44 57 Heaviest Build 3 | . . . . 3 Greatest Support 3 | 3 3 3 3 3 Greatest Overweight (x) . | . . . . . Average Overweight (x) . | . . . . . Largest Inventory Capacity 5 | 5 5 5 5 5 Average Capacity 5 | 5 5 5 5 5 Most Carried 4 | . . . 4 4 Average Carried 2 | . . . . 3 Final Capacity 5 | 5 5 5 5 5 Final Carried 4 | . . . 4 4 Class Distribution -------------------- 100% | Mutant Dominant Class ---------------- Mutant | -10/Materials Mutant | -9/Materials Mutant | -8/Materials Mutant | -7/Factory Resources | -11 -10 -9 -8 -7 ----------- Run | Jun Mat Mat Mat Fac Matter Collected 96 | . . . . 96 Remotely . | . . . . . Salvage Created 142 | . . . . 142 Parts 6 | . . . . 6 Haulers Intercepted . | . . . . . Recyclers Shooed 1 | . . . . 1 Parts Field Recycled . | . . . . . Retrieved Matter . | . . . . . Parts Self-Destructed . | . . . . . Prevented . | . . . . . Kills | -11 -10 -9 -8 -7 ------- Run | Jun Mat Mat Mat Fac Combat Hostiles Destroyed 2 | . . . . 2 AOE 2 | . . . . 2 Classes Destroyed 2 | . . . . 2 Recycler 1 | . . . . 1 Swarmer 2 | . . . . 2 Best Kill Streak 2 | . . . . 2 Combat Bots Only 2 | . . . . 2 Max Kills in Single Turn 2 | . . . . 2 Gunslinging . | . . . . . Exploded 2 | . . . . 2 Melee . | . . . . . Uniques/NPCs Destroyed . | . . . . . Combat | -11 -10 -9 -8 -7 -------- Run | Jun Mat Mat Mat Fac Damage Taken 905 | . 33 127 . 745 Core 866 | . 33 127 . 706 Absorbed by Shields . | . . . . . Core Remaining (%) 88 | 100 86 68 100 . Volleys Fired . | . . . . . Largest . | . . . . . Hottest . | . . . . . Shots Fired . | . . . . . Gun . | . . . . . Cannon . | . . . . . Launcher . | . . . . . Special . | . . . . . Kinetic . | . . . . . Thermal . | . . . . . Explosive . | . . . . . Electromagnetic . | . . . . . Robot Hit Streak . | . . . . . Robot Miss Streak . | . . . . . Penetration Max . | . . . . . Secondary Targets . | . . . . . Shots Hit Robots 1 | . . . . 1 Core Hits 7 | . . . . 7 Critical Kills . | . . . . . Critical Parts Destroyed . | . . . . . Critical Strikes . | . . . . . Melee Attacks 3 | . . . . 3 Impact . | . . . . . Slashing 3 | . . . . 3 Piercing . | . . . . . Sneak Attacks 1 | . . . . 1 Combat Hostiles . | . . . . . Follow-up Attacks . | . . . . . Damage Inflicted 394 | . . . . 394 Guns . | . . . . . Cannons . | . . . . . Explosions 248 | . . . . 248 Melee 83 | . . . . 83 Ramming 63 | . . . . 63 Kinetic . | . . . . . Thermal . | . . . . . Explosive 248 | . . . . 248 Electromagnetic . | . . . . . Impact . | . . . . . Slashing 83 | . . . . 83 Piercing . | . . . . . Highest Corruption 1 | . . . . 1 Average Corruption 1 | . . . . 1 Corruption Purged . | . . . . . Corruption Blocked . | . . . . . Effects 1 | . . . . 1 Data Loss (minor) 1 | . . . . 1 Overload Shots . | . . . . . Overflow Damage . | . . . . . Projectiles . | . . . . . Explosions . | . . . . . Melee . | . . . . . Knockbacks . | . . . . . Impact . | . . . . . Kinetic . | . . . . . Secondary . | . . . . . Self-Inflicted Damage 143 | . . . . 143 Shots 1 | . . . . 1 Rammed 12 | . . . . 12 Targets Rammed 12 | . . . . 12 Kicked . | . . . . . Crushed . | . . . . . Highest Temperature . | . . . . . Average Temperature . | . . . . . Received Heat Transfer 108 | . 18 36 . 54 Siege Activations . | . . . . . Robots Corrupted . | . . . . . Combat Hostiles . | . . . . . Parts Fried . | . . . . . Impact Corruptions . | . . . . . Robots Melted . | . . . . . Combat Hostiles . | . . . . . Parts Melted . | . . . . . Heat Transferred . | . . . . . Parts Sabotaged . | . . . . . Parts Stolen . | . . . . . Parts Stripped . | . . . . . Power Chain Reactions . | . . . . . Missiles Intercepted . | . . . . . Alert | -11 -10 -9 -8 -7 ------- Run | Jun Mat Mat Mat Fac Peak Influence 213 | . 30 72 44 213 Initial 29 | . . 12 29 19 Average 92 | . 15 46 36 123 Maximum Alert Level 1 | . . . . 1 Low Security (%) 99 | 100 100 100 100 98 Level 1 . | . . . . 1 Level 2 . | . . . . . Level 3 . | . . . . . Level 4 . | . . . . . Level 5 . | . . . . . High Security . | . . . . . Max Security . | . . . . . Squads Dispatched 3 | . 2 . . 1 Investigation . | . . . . . Extermination . | . . . . . Reinforcement 3 | . 2 . . 1 Assault . | . . . . . Garrison . | . . . . . Intercept . | . . . . . Searches Triggered . | . . . . . Construction Impeded . | . . . . . Haulers Reinforced . | . . . . . Active Scanning Responses . | . . . . . Cargo Convoy Interrupts . | . . . . . Stealth | -11 -10 -9 -8 -7 --------- Run | Jun Mat Mat Mat Fac Distress Signals 2 | . . 1 . 1 Communications Jammed . | . . . . . Distress Signals . | . . . . . Times Spotted 21 | . 4 5 1 11 Peak Tracking Total 9 | . 3 5 1 9 Tactical Retreats 3 | . . . . 3 Traps | -11 -10 -9 -8 -7 ------- Run | Jun Mat Mat Mat Fac Traps Triggered 2 | . . 1 . 1 Indirectly . | . . . . . Trap Hack Attempts . | . . . . . Triggered . | . . . . . Disarmed . | . . . . . Reprogrammed . | . . . . . Reused . | . . . . . Traps Extracted . | . . . . . Installed . | . . . . . Triggered . | . . . . . Machines | -11 -10 -9 -8 -7 ---------- Run | Jun Mat Mat Mat Fac Machines Disabled 2 | . . . . 2 Max in Single Turn 2 | . . . . 2 Machines Repaired . | . . . . . Machines Sabotaged . | . . . . . Overloaded Fab Kills . | . . . . . Hacking | -11 -10 -9 -8 -7 --------- Run | Jun Mat Mat Mat Fac Machines Accessed 1 | . . . . 1 Terminals 1 | . . . . 1 Fabricators . | . . . . . Repair Stations . | . . . . . Recycling Units . | . . . . . Scanalyzers . | . . . . . Garrison Access . | . . . . . Total Hacks 6 | . . . . 6 Successful 4 | . . . . 4 Failed 2 | . . . . 2 Catastrophic . | . . . . . Database Lockouts . | . . . . . Manual 1 | . . . . 1 Terminals 6 | . . . . 6 Fabricators . | . . . . . Repair Stations . | . . . . . Recycling Units . | . . . . . Scanalyzers . | . . . . . Garrison Access . | . . . . . Terminal Hacks 4 | . . . . 4 Record 1 | . . . . 1 Prototype ID Bank 1 | . . . . 1 Emergency Access Points 1 | . . . . 1 Zone Layout 1 | . . . . 1 Fabricator Hacks . | . . . . . Repair Station Hacks . | . . . . . Recycling Unit Hacks . | . . . . . Scanalyzer . | . . . . . Garrison Access Hacks . | . . . . . Unauthorized Hacks . | . . . . . Terminals . | . . . . . Fabricators . | . . . . . Repair Stations . | . . . . . Recycling Units . | . . . . . Scanalyzers . | . . . . . Garrison Access . | . . . . . Data Cores Recovered . | . . . . . Used . | . . . . . Hacking Detections . | . . . . . Full Trace Events . | . . . . . Feedback Events . | . . . . . Feedback Blocked . | . . . . . Robot Schematics Acquired . | . . . . . Robots Built . | . . . . . Authchips . | . . . . . Time . | . . . . . Total Robot Build Rating . | . . . . . Part Schematics Acquired . | . . . . . Parts Built . | . . . . . Authchips . | . . . . . Time . | . . . . . Total Part Build Rating . | . . . . . Parts Repaired . | . . . . . Time . | . . . . . Parts Recycled . | . . . . . Recycled Matter . | . . . . . Retrieved Matter . | . . . . . Retrieved Components . | . . . . . Parts Scanalyzed . | . . . . . Part Schematics Acquired . | . . . . . Parts Damaged . | . . . . . Bothacking | -11 -10 -9 -8 -7 ------------ Run | Jun Mat Mat Mat Fac Used RIF Installer . | . . . . . Robots Hacked . | . . . . . Non-combat . | . . . . . Combat . | . . . . . Robot Hacks Applied . | . . . . . Relay Couplers Released . | . . . . . Fabnet Peak Effective % . | . . . . . Robots Rewired . | . . . . . Allies Hacked . | . . . . . Hacks Repelled . | . . . . . Allies | -11 -10 -9 -8 -7 -------- Run | Jun Mat Mat Mat Fac Total Allies . | . . . . . Largest Group . | . . . . . Highest-Rated Group . | . . . . . Highest-Rated Ally . | . . . . . Total Orders . | . . . . . Ally Attacks . | . . . . . Total Damage . | . . . . . Kills . | . . . . . Allies Corrupted . | . . . . . Allies Melted . | . . . . . Intel | -11 -10 -9 -8 -7 ------- Run | Jun Mat Mat Mat Fac Robot Analysis Total . | . . . . . Derelict Logs Recovered . | . . . . . Drone Launches . | . . . . . Drone Recoveries . | . . . . . Exploration | -11 -10 -9 -8 -7 ------------- Run | Jun Mat Mat Mat Fac Turns Passed 446 | 9 43 54 44 296 Spaces Moved 839 | 18 85 108 80 548 Core 839 | 18 85 108 80 548 Treads . | . . . . . Legs . | . . . . . Wheels . | . . . . . Hover . | . . . . . Flight . | . . . . . Fastest Speed 50 | 50 50 50 50 50 Average Speed 50 | 50 50 50 50 50 Slowest Speed 50 | 50 50 50 50 50 Overloaded Moves . | . . . . . Propulsion Burnouts . | . . . . . Robots Hopped . | . . . . . Cave-ins Triggered . | . . . . . Exploration Rate (%) 14 | 3 19 17 14 18 Regions Visited 4 Branch Regions . Pre-discovered Areas . | . . . . . Known Exits Taken . | . . . . . Unknown Exits Taken 4 | 1 1 1 1 . Scrap Searched . | . . . . . Spaces Dug 1 | . . . . 1 Terrain Destroyed 30 | . . . . 30 Melee 1 | . . . . 1 Projectile . | . . . . . AOE 29 | . . . . 29 Terrain Rammed . | . . . . . Walls Destroyed . | . . . . . Machines Disabled . | . . . . . Actions | -11 -10 -9 -8 -7 --------- Run | Jun Mat Mat Mat Fac Total 856 | 17 84 107 83 565 Wait . | . . . . . Move 835 | 17 84 107 79 548 Hop . | . . . . . Pick Up 5 | . . . 4 1 Fast Attach . | . . . . . Attach 1 | . . . . 1 Detach . | . . . . . Swap . | . . . . . Drop . | . . . . . Fire . | . . . . . Melee 3 | . . . . 3 Ram 12 | . . . . 12 Kick . | . . . . . Crush . | . . . . . Escape Stasis . | . . . . . Rewire . | . . . . . Trap . | . . . . . Miscellaneous . | . . . . . Route ------- -11/Junkyard -10/Materials -9/Materials -8/Materials -7/Factory History --------- Turn | Location | Event 4 | -11/Junkyard | Discovered new exit (range 13) 10 | -11/Junkyard | Entered Materials 48 | -10/Materials | Discovered new exit (range 11) 53 | -10/Materials | Entered another Materials area 53 | -9/Materials | Evolved 2 slots: Utility x2 105 | -9/Materials | Discovered new exit (range 5) 107 | -9/Materials | Entered another Materials area 107 | -8/Materials | Evolved 2 slots: Utility x2 135 | -8/Materials | Discovered new exit (range 16) 151 | -8/Materials | Entered Factory 151 | -7/Factory | Evolved 2 slots: Utility x2 202 | -7/Factory | Core integrity fell below 50% 214 | -7/Factory | Core integrity fell below 20% 305 | -7/Factory | Build established: Mutant 447 | -7/Factory | Destroyed by G-47 Trooper with Particle Gun Last Messages --------------- >>Layout(Zone) Retrieving Zone 7B layout... Downloaded map data. >>Access(Emergency) Found 2 emergency access doors: (158,63) (163,63) Map updated. >>Query(Waste) Subzones between [Complex 0b10] mid-levels where larger machinery and obsolete robot models are broken down by completely autonomous compactors. The process doubles as a convenient way to deal with intruders swallowed by a [Chute Trap]. >>Prototypes Downloading prototype IDs... Imp. VTOL Module Prc. Grenade Launcher 00413_ K-01 Serf cleans the Nuclear Reactor. 00417_ W-25 Informer sends out distress signal. 00428_ ALERT: Suspicious intruders detected, dispatching Cutter reinforcements to area. Map ----- +----------------------------------------------------+ | ?????# #???????????#????????# ????? | | ?????# #?????????? #????????+ ????? | | ?????# #????????? #????????# ####????? | | ?????# #???????? ?????????# ###+####???????? | | ###### #########+############ #??????????????? | | #??????????????? | | #??????????????? | | #??????????????? | | #??????????????? | | #??????????????? | | #######################+#######+#########????????? | | ????????????????????????????# #??? | | ????????????????????????????# """""" """???????? | | ????????????????????????????# """""" """???????? | | ????????????????????????????# ! """""" """"??????? | | ????????????????????????????# """""" """""" #??? | | ????????????????????????????# #??? | | ????????????????????????????# ! #??? | | ???????????? ####################+##+########???? | | ???????????? w ? | | ???????????? #???????? | | ??????????? #???????? | | ?????????H? t g #???????? | | ?????????? b #???????? | | ?????????? #???????? | | ?????????? @ g g #???????? | | ??????????????####+##################/#+##???????? | | ????????????????????????????????????? ?????????? | | ?????????????????????????????????????"" ""???????? | | ?????????????????????????????????????"" ""???????? | | ????????????????????????????????????????""???????? | | ?????????????????????????????????????????????????? | | ?????????????????????????????????????????????????? | | ?????????????????????????????????????????????????? | | ?????????????????????????????????????????????????? | | ?????????????????????????????????????????????????? | | ?????????????????????????????????????????????????? | | ?????????????????????????????????????????????????? | | ?????????????????????????????????????????????????? | | ?????????????????????????????????????????????????? | | ?????????????????????????????????????????????????? | | ?????????????????????????????????????????????????? | | ?????????????????????????????????????????????????? | | ?????????????????????????????????????????????????? | | ?????????????????????????????????????????????????? | | ?????????????????????????????????????????????????? | | ?????????????????????????????????????????????????? | | ?????????????????????????????????????????????????? | | ?????????????????????????????????????????????????? | | ?????????????????????????????????????????????????? | +----------------------------------------------------+ Best States ------------- Heat Dissipation 34 Energy Generation 5 Energy Capacity 100 Matter Stores 222 Matter Capacity 300 Sight Range 16 Terrain Scan Density 10 Evasion (%) 50 Item Schematics ----------------- None Robot Schematics ------------------ None Fabricated ------------ Nothing Alien Tech Used ----------------- None Achievements -------------- None Challenges ------------ None Game ------ Seed CoreLobotomyBroadsword Manual? 0 Play Time 00:07:57 Cumulative 90.5 hours Start 2023.04.10 @ 10:23:17 End 2023.04.10 @ 10:28:05 Sessions 1 Manual Loads 0 Difficulty Rogue Special Mode None Game No. 135 Rogue 135 Adventurer 0 Explorer 0 Win Type - Total 2 Types 2/0/0/0/0/0/0/0/0 Lore% 53 Gallery% 56 Achievement% 45 Wizard Run 0 Options --------- ASCII 0 Keyboard 0 Movement Numpad Keybinds 0 Fullscreen 1 Font 12/Smallcaps Map View 83x54 Tactical HUD 1 Map Filters NONE Filters NONE Steam 1 RUN: 32b64ff5-f1d9-494c-b1ba-155e7172c73e